[Event "Hungarian Youth-ch U10 2022"]
[Site "Eger"]
[Date "2022.07.30"]
[Round "8.2"]
[White "Szollosi, Balazs"]
[Black "Meszaros-Csonka, David"]
[Result "1/2-1/2"]
[ECO "B29"]
[WhiteElo "1423"]
[BlackElo "1361"]
[Annotator "NA RC COMBH"]
[PlyCount "54"]
[EventDate "2022.07.21"]
[EventType "tourn"]
[EventCountry "HUN"]
[SourceTitle "playchess.com"]
[Source "ChessBase"]
[SourceQuality "1"]
[TimeControl "40/5400+30:1800+30"]

1. e4 {[%emt 0:00:32]} c5 {[%emt 0:01:02]} 2. Nf3 {[%emt 0:00:25]} Nf6 {[%emt 0:01:45]} 3. Nc3 {[%emt 0:00:49]} d5 {[%emt 0:01:28]} 4. Bb5+ {[%emt 0:01:47]} Bd7 {[%emt 0:01:26]} 5. Bxd7+ {[%emt 0:01:17]} Qxd7 {[%emt 0:01:53]} 6. exd5 {[%emt 0:00:41]} Nxd5 {[%emt 0:00:46]} 7. O-O {[%emt 0:00:37]} Nc6 {[%emt 0:01:42]} 8. d4 {[%emt 0:00:36]} Nxc3 {[%emt 0:03:54]} 9. bxc3 {[%emt 0:00:52]} e6 {[%emt 0:01:46]} 10. Re1 {[%emt 0:01:26]} Be7 {[%emt 0:01:26]} 11. Ba3 {[%emt 0:01:51]} cxd4 {[%emt 0:07:37]} 12. Bxe7 {[%emt 0:00:12]} Qxe7 {[%emt 0:06:10]} 13. cxd4 {[%emt 0:00:19]} O-O {[%emt 0:05:28]} 14. c3 {[%emt 0:05:13]} Rfd8 {[%emt 0:03:02]} 15. Qb3 {[%emt 0:03:47]} Rac8 {[%emt 0:06:44]} 16. Rad1 {[%emt 0:00:54]} Rd5 {[%emt 0:12:39]} 17. Qxd5 {[%emt 0:03:38]} exd5 {[%emt 0:00:04]} 18. Rxe7 {[%emt 0:00:22]} Nxe7 {[%emt 0:00:06]} 19. Rc1 {[%emt 0:01:26]} f6 {[%emt 0:01:58]} 20. Kf1 {[%emt 0:01:07]} Kf7 {[%emt 0:01:40]} 21. Ke2 {[%emt 0:00:46]} Ng6 {[%emt 0:02:54]} 22. g3 {[%emt 0:00:43]} Ke6 {[%emt 0:02:03]} 23. Nd2 {[%emt 0:02:45]} b5 {[%emt 0:03:06]} 24. Nb3 {[%emt 0:00:39]} Ne7 {[%emt 0:01:14]} 25. Nc5+ {[%emt 0:00:30]} Kd6 {[%emt 0:00:53]} 26. Kd3 {[%emt 0:01:22]} g5 {[%emt 0:03:49]} 27. Re1 {[%emt 0:00:16]} Ng8 {[%emt 0:05:51]} 1/2-1/2

[Event "Hungarian Youth-ch U10 2022"]
[Site "Eger"]
[Date "2022.07.30"]
[Round "8.3"]
[White "Hegedus, Bernat"]
[Black "Minga-Nagy, Abel Inti"]
[Result "0-1"]
[ECO "A43"]
[WhiteElo "1491"]
[BlackElo "1540"]
[Annotator "NA COMBH"]
[PlyCount "132"]
[EventDate "2022.07.21"]
[EventType "tourn"]
[EventCountry "HUN"]
[SourceTitle "playchess.com"]
[Source "ChessBase"]
[SourceQuality "1"]
[TimeControl "40/5400+30:1800+30"]

1. d4 {[%emt 0:00:48]} Nf6 {[%emt 0:00:44]} 2. c4 {[%emt 0:00:40]} c5 {[%emt 0:00:50]} 3. d5 {[%emt 0:00:37]} d6 {[%emt 0:01:30]} 4. Nc3 {[%emt 0:01:30]} g6 {[%emt 0:03:06]} 5. e4 {[%emt 0:03:11]} Bg7 {[%emt 0:01:59]} 6. Bd3 {[%emt 0:01:24]} O-O {[%emt 0:04:44]} 7. h3 {[%emt 0:04:25]} e6 {[%emt 0:03:20]} 8. Nf3 {[%emt 0:02:17]} exd5 {[%emt 0:02:32]} 9. cxd5 {[%emt 0:09:20]} b5 {[%emt 0:02:18]} 10. Nxb5 {[%emt 0:03:49]} Nxe4 {[%emt 0:00:23]} 11. O-O {[%emt 0:02:42]} Nf6 {[%emt 0:06:27]} 12. Bf4 {[%emt 0:02:27]} Ne8 {[%emt 0:04:20]} 13. Rb1 {[%emt 0:05:18]} Na6 {[%emt 0:04:48]} 14. Nd2 {[%emt 0:01:58]} Nb4 {[%emt 0:02:23]} 15. Bc4 {[%emt 0:01:19]} Bf5 {[%emt 0:02:26]} 16. Re1 {[%emt 0:01:37]} Bxb1 {[%emt 0:02:41]} 17. Qxb1 {[%emt 0:00:17]} a6 {[%emt 0:02:32]} 18. Nc3 {[%emt 0:00:21]} Rb8 19. Qc1 {[%emt 0:02:12]} Qf6 {[%emt 0:03:50]} 20. Nde4 {[%emt 0:02:00]} Qd4 {[%emt 0:02:15]} 21. Bf1 {[%emt 0:03:43]} Nd3 {[%emt 0:04:12]} 22. Bxd3 {[%emt 0:01:39]} Qxd3 {[%emt 0:00:11]} 23. Nxd6 {[%emt 0:00:51]} Bxc3 {[%emt 0:01:37]} 24. bxc3 {[%emt 0:00:22]} Qxd5 {[%emt 0:02:59]} 25. Nf5 {[%emt 0:02:13]} Rb7 {[%emt 0:03:39]} 26. Ne7+ {[%emt 0:07:07]} Rxe7 {[%emt 0:00:08]} 27. Rxe7 {[%emt 0:00:15]} Qxa2 {[%emt 0:00:50]} 28. Qe1 {[%emt 0:01:07]} Nf6 {[%emt 0:00:56]} 29. Bh6 {[%emt 0:01:21]} Rd8 {[%emt 0:04:52]} 30. Qe5 {[%emt 0:02:35]} Qb1+ {[%emt 0:00:22]} 31. Kh2 {[%emt 0:00:29]} Qf5 {[%emt 0:00:08]} 32. Qc7 {[%emt 0:00:39]} Rc8 {[%emt 0:03:55]} 33. Qb7 {[%emt 0:01:28]} Rd8 {[%emt 0:01:37]} 34. Rxf7 {[%emt 0:01:26]} Ng4+ {[%emt 0:00:15]} 35. hxg4 {[%emt 0:00:22]} Qxf7 {[%emt 0:00:21]} 36. Qxa6 {[%emt 0:00:37]} Qxf2 {[%emt 0:02:52]} 37. Qe6+ {[%emt 0:00:41]} Qf7 {[%emt 0:00:42]} 38. Qe5 {[%emt 0:01:19]} c4 {[%emt 0:01:46]} 39. Bg5 {[%emt 0:00:50]} Qd5 {[%emt 0:03:52]} 40. Qe3 {[%emt 0:00:00]} Qd6+ {[%emt 0:00:00]} 41. Kh1 {[%emt 0:02:04]} Rb8 {[%emt 0:02:35]} 42. Bf4 {[%emt 0:00:58]} Qb6 {[%emt 0:01:23]} 43. Qe5 {[%emt 0:03:47]} Rd8 {[%emt 0:01:39]} 44. Qe2 {[%emt 0:02:43]} Qc6 {[%emt 0:03:32]} 45. Qe5 {[%emt 0:03:44]} Qd5 {[%emt 0:02:00]} 46. Qe7 {[%emt 0:01:57]} Qd7 {[%emt 0:07:31]} 47. Qe4 {[%emt 0:01:51]} Qf7 {[%emt 0:02:07]} 48. Be3 {[%emt 0:01:53]} Re8 {[%emt 0:02:10]} 49. Qd4 {[%emt 0:01:03]} Qe6 {[%emt 0:02:23]} 50. Bf2 {[%emt 0:01:08]} Rf8 {[%emt 0:02:06]} 51. Be3 {[%emt 0:00:56]} h6 {[%emt 0:03:00]} 52. g5 {[%emt 0:01:40]} Rf1+ {[%emt 0:04:50]} 53. Kh2 {[%emt 0:02:50]} hxg5 {[%emt 0:02:40]} 54. Bxg5 {[%emt 0:01:12]} Rf5 {[%emt 0:02:57]} 55. Qd8+ {[%emt 0:01:01]} Kg7 {[%emt 0:02:07]} 56. Qc7+ {[%emt 0:00:35]} Qf7 {[%emt 0:00:58]} 57. Qg3 {[%emt 0:00:18]} Rd5 {[%emt 0:02:37]} 58. Bf4 {[%emt 0:00:49]} Rh5+ {[%emt 0:00:28]} 59. Kg1 {[%emt 0:00:16]} Qa7+ {[%emt 0:00:19]} 60. Be3 {[%emt 0:00:39]} Qa1+ {[%emt 0:00:06]} 61. Kf2 {[%emt 0:00:21]} Rf5+ {[%emt 0:01:07]} 62. Ke2 {[%emt 0:00:33]} Qf1+ {[%emt 0:00:11]} 63. Kd2 {[%emt 0:00:12]} Qd3+ {[%emt 0:00:17]} 64. Kc1 {[%emt 0:00:06]} Rf1+ {[%emt 0:00:13]} 65. Kb2 {[%emt 0:00:26]} Qb1+ {[%emt 0:00:18]} 66. Ka3 {[%emt 0:00:05]} Qb3# 0-1

[Event "Hungarian Youth-ch U10 2022"]
[Site "Eger"]
[Date "2022.07.30"]
[Round "8.4"]
[White "Hangay, Oliver"]
[Black "Papai, Mate"]
[Result "1/2-1/2"]
[ECO "B47"]
[WhiteElo "1695"]
[BlackElo "1385"]
[Annotator "NA RC COMBH"]
[PlyCount "56"]
[EventDate "2022.07.21"]
[EventType "tourn"]
[EventCountry "HUN"]
[SourceTitle "playchess.com"]
[Source "ChessBase"]
[SourceQuality "1"]
[TimeControl "40/5400+30:1800+30"]

1. e4 {[%emt 0:00:36]} c5 {[%emt 0:00:51]} 2. Nf3 {[%emt 0:00:11]} e6 {[%emt 0:00:16]} 3. d4 {[%emt 0:00:05]} cxd4 {[%emt 0:00:23]} 4. Nxd4 {[%emt 0:00:15]} Nc6 {[%emt 0:00:44]} 5. Nc3 {[%emt 0:00:07]} Qc7 {[%emt 0:00:18]} 6. g3 {[%emt 0:00:37]} a6 {[%emt 0:00:25]} 7. Bg2 {[%emt 0:00:24]} Nf6 {[%emt 0:00:08]} 8. O-O {[%emt 0:00:13]} Bc5 {[%emt 0:00:14]} 9. Nb3 {[%emt 0:02:21]} Ba7 {[%emt 0:00:40]} 10. Bg5 {[%emt 0:08:46]} h5 {[%emt 0:07:21]} 11. Bf3 {[%emt 0:05:32]} h4 {[%emt 0:49:27]} 12. Bf4 {[%emt 0:11:16]} Ne5 {[%emt 0:08:52]} 13. Qe2 {[%emt 0:05:59]} hxg3 {[%emt 0:06:07]} 14. hxg3 {[%emt 0:02:04]} Nh7 {[%emt 0:04:39]} 15. Kg2 {[%emt 0:02:51]} Nf8 {[%emt 0:03:03]} 16. Bxe5 {[%emt 0:03:15]} Qxe5 {[%emt 0:00:12]} 17. Rh1 {[%emt 0:01:13]} Rxh1 {[%emt 0:00:38]} 18. Rxh1 {[%emt 0:00:08]} g6 {[%emt 0:01:50]} 19. Qd3 {[%emt 0:07:26]} b5 {[%emt 0:03:42]} 20. a3 {[%emt 0:02:40]} Bb6 {[%emt 0:01:34]} 21. Rd1 {[%emt 0:05:29]} Bb7 {[%emt 0:01:26]} 22. Qd6 {[%emt 0:02:24]} Bc7 {[%emt 0:02:11]} 23. Qxe5 {[%emt 0:04:34]} Bxe5 {[%emt 0:00:04]} 24. Nd4 {[%emt 0:04:03]} Rc8 {[%emt 0:00:55]} 25. Rd2 {[%emt 0:00:42]} Rc4 {[%emt 0:01:18]} 26. Nde2 {[%emt 0:04:17]} Nh7 {[%emt 0:00:34]} 27. Rd3 {[%emt 0:03:22]} Ng5 {[%emt 0:00:44]} 28. b3 {[%emt 0:02:34]} Rc8 {[%emt 0:01:42]} 1/2-1/2

[Event "Hungarian Youth-ch U10 2022"]
[Site "Eger"]
[Date "2022.07.30"]
[Round "8.5"]
[White "Hegedus, Zsombor"]
[Black "Brieber, Benedek"]
[Result "1-0"]
[ECO "B01"]
[WhiteElo "1348"]
[BlackElo "1369"]
[Annotator "NA RC COMBH"]
[PlyCount "103"]
[EventDate "2022.07.21"]
[EventType "tourn"]
[EventCountry "HUN"]
[SourceTitle "playchess.com"]
[Source "ChessBase"]
[SourceQuality "1"]
[TimeControl "40/5400+30:1800+30"]

1. e4 {[%emt 0:00:41]} d5 {[%emt 0:00:38]} 2. exd5 {[%emt 0:00:14]} Nf6 {[%emt 0:00:16]} 3. Bb5+ {[%emt 0:00:38]} Bd7 {[%emt 0:00:15]} 4. Bc4 {[%emt 0:00:44]} Bg4 {[%emt 0:00:28]} 5. f3 {[%emt 0:00:52]} Bf5 {[%emt 0:00:16]} 6. Nc3 {[%emt 0:00:36]} Nbd7 {[%emt 0:02:20]} 7. Nge2 {[%emt 0:02:22]} Nb6 {[%emt 0:00:36]} 8. Bb5+ {[%emt 0:02:05]} Bd7 {[%emt 0:00:48]} 9. Bxd7+ {[%emt 0:01:06]} Qxd7 {[%emt 0:00:28]} 10. O-O {[%emt 0:01:39]} Nbxd5 {[%emt 0:00:53]} 11. Nxd5 {[%emt 0:01:42]} Qxd5 {[%emt 0:00:19]} 12. Nc3 {[%emt 0:02:10]} Qd4+ {[%emt 0:01:15]} 13. Kh1 {[%emt 0:00:34]} e6 {[%emt 0:02:48]} 14. Qe2 {[%emt 0:03:18]} O-O-O {[%emt 0:01:50]} 15. d3 {[%emt 0:02:37]} Nd5 {[%emt 0:04:33]} 16. Ne4 {[%emt 0:06:03]} Nf6 {[%emt 0:04:25]} 17. Nxf6 {[%emt 0:12:46]} Qxf6 {[%emt 0:00:21]} 18. c3 {[%emt 0:03:04]} Rd5 {[%emt 0:03:50]} 19. Re1 {[%emt 0:02:20]} Bd6 {[%emt 0:04:11]} 20. Bd2 {[%emt 0:04:18]} Qh4 {[%emt 0:01:48]} 21. g3 {[%emt 0:09:00]} Bxg3 {[%emt 0:02:51]} 22. Rg1 {[%emt 0:00:38]} Rh5 {[%emt 0:01:45]} 23. Rg2 {[%emt 0:01:40]} Rd8 {[%emt 0:09:36]} 24. Kg1 {[%emt 0:01:43]} Bf4 {[%emt 0:04:55]} 25. Bxf4 {[%emt 0:02:12]} Qxf4 {[%emt 0:00:15]} 26. Rxg7 {[%emt 0:00:19]} Rg5+ {[%emt 0:00:14]} 27. Rxg5 {[%emt 0:00:12]} Qxg5+ {[%emt 0:00:11]} 28. Kh1 {[%emt 0:00:46]} Rg8 {[%emt 0:08:25]} 29. Qf2 {[%emt 0:02:06]} Qf5 {[%emt 0:04:28]} 30. Qe3 {[%emt 0:03:33]} Qg6 {[%emt 0:01:57]} 31. Rg1 {[%emt 0:01:56]} Qxg1+ {[%emt 0:00:19]} 32. Qxg1 {[%emt 0:00:05]} Rxg1+ {[%emt 0:00:06]} 33. Kxg1 {[%emt 0:00:06]} Kd7 {[%emt 0:00:18]} 34. Kf2 {[%emt 0:00:21]} Kd6 {[%emt 0:00:41]} 35. Ke3 {[%emt 0:00:18]} Ke5 {[%emt 0:00:21]} 36. d4+ {[%emt 0:00:57]} Kf5 {[%emt 0:01:07]} 37. h4 {[%emt 0:00:28]} f6 {[%emt 0:01:12]} 38. c4 {[%emt 0:00:55]} c6 {[%emt 0:03:23]} 39. b4 {[%emt 0:02:01]} b5 {[%emt 0:02:04]} 40. c5 {[%emt 0:00:00]} a6 {[%emt 0:00:00]} 41. a3 {[%emt 0:03:51]} h5 {[%emt 0:00:51]} 42. f4 {[%emt 0:00:27]} Kg4 {[%emt 0:00:30]} 43. Ke4 {[%emt 0:00:06]} Kxh4 {[%emt 0:00:08]} 44. f5 {[%emt 0:00:20]} exf5+ {[%emt 0:00:28]} 45. Kxf5 {[%emt 0:00:11]} Kg3 {[%emt 0:00:22]} 46. d5 {[%emt 0:00:22]} h4 {[%emt 0:00:40]} 47. dxc6 {[%emt 0:00:23]} h3 {[%emt 0:00:06]} 48. c7 {[%emt 0:00:14]} h2 {[%emt 0:00:08]} 49. c8=Q {[%emt 0:00:10]} h1=Q 50. Qc7+ Kf2 {[%emt 0:00:59]} 51. Qf4+ {[%emt 0:00:21]} Ke2 {[%emt 0:10:03]} 52. Qe4+ {[%emt 0:00:20]} 1-0

[Event "Hungarian Youth-ch U10 2022"]
[Site "Eger"]
[Date "2022.07.30"]
[Round "8.6"]
[White "Wang, Luomeng"]
[Black "Biro, Csilla"]
[Result "1/2-1/2"]
[ECO "C01"]
[WhiteElo "1078"]
[BlackElo "1215"]
[Annotator "NA RC COMBH"]
[PlyCount "60"]
[EventDate "2022.07.21"]
[EventType "tourn"]
[EventCountry "HUN"]
[SourceTitle "playchess.com"]
[Source "ChessBase"]
[SourceQuality "1"]
[TimeControl "40/5400+30:1800+30"]

1. e4 {[%emt 0:00:33]} e6 {[%emt 0:00:42]} 2. d4 {[%emt 0:00:26]} d5 {[%emt 0:00:16]} 3. exd5 {[%emt 0:01:18]} exd5 {[%emt 0:00:18]} 4. c4 {[%emt 0:00:40]} Nf6 {[%emt 0:01:16]} 5. Nc3 {[%emt 0:00:58]} Bb4 {[%emt 0:04:02]} 6. Bd2 {[%emt 0:01:44]} O-O {[%emt 0:03:04]} 7. c5 {[%emt 0:00:41]} c6 {[%emt 0:01:45]} 8. Nf3 {[%emt 0:03:50]} Bf5 {[%emt 0:07:31]} 9. Be2 {[%emt 0:03:43]} b6 {[%emt 0:04:31]} 10. a3 {[%emt 0:02:35]} Bxc3 {[%emt 0:00:36]} 11. Bxc3 {[%emt 0:00:35]} bxc5 {[%emt 0:00:41]} 12. dxc5 {[%emt 0:00:31]} Nbd7 {[%emt 0:00:44]} 13. b4 {[%emt 0:01:51]} Ne4 {[%emt 0:04:00]} 14. Bb2 {[%emt 0:02:30]} a5 {[%emt 0:02:14]} 15. Nd4 {[%emt 0:01:44]} Qf6 {[%emt 0:03:32]} 16. O-O {[%emt 0:05:03]} Rfb8 {[%emt 0:03:40]} 17. Bd3 {[%emt 0:13:27]} axb4 {[%emt 0:04:49]} 18. Nxf5 {[%emt 0:03:04]} Qxf5 {[%emt 0:00:32]} 19. f3 {[%emt 0:01:08]} Ndxc5 {[%emt 0:08:11]} 20. fxe4 {[%emt 0:02:55]} Qe6 {[%emt 0:03:08]} 21. Re1 {[%emt 0:04:19]} dxe4 {[%emt 0:01:46]} 22. Bf1 {[%emt 0:05:08]} Rd8 {[%emt 0:02:12]} 23. Qc2 {[%emt 0:04:20]} Qe7 {[%emt 0:02:58]} 24. axb4 {[%emt 0:02:14]} Rxa1 {[%emt 0:01:08]} 25. Bxa1 {[%emt 0:00:39]} Nd3 {[%emt 0:00:36]} 26. Bxd3 {[%emt 0:00:00]} exd3 {[%emt 0:01:00]} 27. Qc3 {[%emt 0:00:53]} Qg5 {[%emt 0:05:17]} 28. Qxc6 {[%emt 0:01:38]} h6 {[%emt 0:00:35]} 29. Qc5 {[%emt 0:08:14]} Qg4 {[%emt 0:05:35]} 30. Bc3 {[%emt 0:04:59]} Rc8 {[%emt 0:07:03]} 1/2-1/2

[Event "Hungarian Youth-ch U10 2022"]
[Site "Eger"]
[Date "2022.07.30"]
[Round "8.7"]
[White "Hangyal, Anna"]
[Black "Ferenczy, Nora"]
[Result "0-1"]
[ECO "B13"]
[WhiteElo "1154"]
[BlackElo "1051"]
[Annotator "NA RC COMBH"]
[PlyCount "102"]
[EventDate "2022.07.21"]
[EventType "tourn"]
[EventCountry "HUN"]
[SourceTitle "playchess.com"]
[Source "ChessBase"]
[SourceQuality "1"]
[TimeControl "40/5400+30:1800+30"]

1. c4 {[%emt 0:00:38]} c6 {[%emt 0:00:36]} 2. e4 {[%emt 0:00:18]} d5 {[%emt 0:02:38]} 3. exd5 {[%emt 0:00:07]} cxd5 {[%emt 0:00:14]} 4. d4 {[%emt 0:01:05]} Nf6 {[%emt 0:05:08]} 5. Nc3 {[%emt 0:03:13]} dxc4 {[%emt 0:08:59]} 6. Bxc4 {[%emt 0:00:20]} b6 {[%emt 0:01:35]} 7. Bf4 {[%emt 0:00:43]} Bb7 {[%emt 0:02:00]} 8. d5 {[%emt 0:01:37]} g6 {[%emt 0:16:11]} 9. Nb5 {[%emt 0:13:18]} Na6 {[%emt 0:07:57]} 10. Nf3 {[%emt 0:05:13]} Nxd5 {[%emt 0:10:00]} 11. Qd4 {[%emt 0:20:23]} Nf6 {[%emt 0:05:20]} 12. Qxd8+ {[%emt 0:02:42]} Rxd8 {[%emt 0:05:32]} 13. Nc7+ {[%emt 0:00:23]} Nxc7 {[%emt 0:01:57]} 14. Bxc7 {[%emt 0:00:17]} Rc8 {[%emt 0:03:22]} 15. Bb5+ {[%emt 0:00:27]} Nd7 {[%emt 0:02:23]} 16. Bg3 {[%emt 0:03:23]} a6 {[%emt 0:03:25]} 17. Ba4 {[%emt 0:01:32]} b5 {[%emt 0:00:42]} 18. Bb3 {[%emt 0:00:12]} Bg7 {[%emt 0:01:22]} 19. Rd1 {[%emt 0:00:58]} e6 {[%emt 0:02:33]} 20. O-O {[%emt 0:01:46]} Nc5 {[%emt 0:02:50]} 21. Bc2 {[%emt 0:07:55]} O-O {[%emt 0:02:23]} 22. b4 {[%emt 0:01:19]} Na4 {[%emt 0:02:03]} 23. Bxa4 {[%emt 0:00:12]} bxa4 {[%emt 0:00:05]} 24. Rd6 {[%emt 0:03:28]} Rc2 {[%emt 0:02:19]} 25. Rd7 {[%emt 0:02:17]} Bd5 {[%emt 0:02:35]} 26. Bd6 {[%emt 0:03:23]} Rfc8 {[%emt 0:01:29]} 27. Be5 {[%emt 0:03:45]} f6 {[%emt 0:03:09]} 28. Bf4 {[%emt 0:00:25]} Rxa2 29. Be3 Rb2 {[%emt 0:01:35]} 30. h3 {[%emt 0:01:41]} Rxb4 {[%emt 0:00:50]} 31. Bd4 {[%emt 0:00:39]} a3 {[%emt 0:01:39]} 32. Kh2 {[%emt 0:00:18]} a2 {[%emt 0:00:11]} 33. Ra1 {[%emt 0:00:37]} Rb1 {[%emt 0:00:16]} 34. Nd2 {[%emt 0:00:49]} Rxa1 {[%emt 0:00:39]} 35. Bxa1 {[%emt 0:00:10]} Rc1 {[%emt 0:00:35]} 36. Rd8+ {[%emt 0:02:46]} Bf8 {[%emt 0:00:44]} 37. Bxf6 {[%emt 0:00:17]} a1=Q {[%emt 0:00:09]} 38. Bxa1 {[%emt 0:00:07]} Rxa1 {[%emt 0:00:13]} 39. Nf3 {[%emt 0:00:26]} Bxf3 {[%emt 0:00:16]} 40. gxf3 {[%emt 0:00:00]} a5 {[%emt 0:00:00]} 41. Ra8 {[%emt 0:00:25]} a4 {[%emt 0:00:52]} 42. Kg3 {[%emt 0:00:11]} a3 {[%emt 0:00:24]} 43. Kg2 {[%emt 0:00:06]} Rc1 {[%emt 0:00:38]} 44. Kh2 {[%emt 0:00:33]} Rc2 {[%emt 0:00:31]} 45. Kg2 {[%emt 0:00:12]} a2 {[%emt 0:00:22]} 46. Kg3 {[%emt 0:00:08]} Kg7 {[%emt 0:00:14]} 47. Kg2 {[%emt 0:00:46]} Bc5 {[%emt 0:00:39]} 48. Kg3 {[%emt 0:00:16]} Bxf2+ {[%emt 0:00:46]} 49. Kg2 {[%emt 0:00:32]} Bd4+ {[%emt 0:00:29]} 50. Kg3 {[%emt 0:00:15]} a1=Q {[%emt 0:00:13]} 51. Rxa1 {[%emt 0:00:06]} Bxa1 {[%emt 0:00:14]} 0-1

[Event "Hungarian Youth-ch U10 2022"]
[Site "Eger"]
[Date "2022.07.30"]
[Round "8.8"]
[White "Illes-Nagy, Nora"]
[Black "Hangay, Lilla"]
[Result "0-1"]
[ECO "A57"]
[WhiteElo "1402"]
[BlackElo "1169"]
[Annotator "NA COMBH"]
[PlyCount "84"]
[EventDate "2022.07.21"]
[EventType "tourn"]
[EventCountry "HUN"]
[SourceTitle "playchess.com"]
[Source "ChessBase"]
[SourceQuality "1"]
[TimeControl "40/5400+30:1800+30"]

1. d4 {[%emt 0:00:36]} c5 {[%emt 0:00:34]} 2. d5 {[%emt 0:00:29]} Nf6 {[%emt 0:00:19]} 3. c4 {[%emt 0:00:43]} b5 {[%emt 0:00:22]} 4. b3 {[%emt 0:01:48]} b4 {[%emt 0:03:38]} 5. Bg5 {[%emt 0:02:02]} Ne4 {[%emt 0:08:30]} 6. Bh4 {[%emt 0:05:35]} g5 {[%emt 0:00:31]} 7. Nd2 {[%emt 0:08:22]} Nc3 {[%emt 0:00:14]} 8. Qc2 {[%emt 0:00:22]} gxh4 {[%emt 0:00:35]} 9. e4 {[%emt 0:06:14]} Bg7 {[%emt 0:03:15]} 10. Rc1 {[%emt 0:00:18]} Qa5 {[%emt 0:01:18]} 11. Bd3 {[%emt 0:03:18]} Qxa2 {[%emt 0:01:09]} 12. Qxa2 {[%emt 0:00:28]} Nxa2 {[%emt 0:00:08]} 13. Rc2 {[%emt 0:00:31]} Nc3 {[%emt 0:00:27]} 14. f4 {[%emt 0:01:58]} d6 {[%emt 0:03:34]} 15. h3 {[%emt 0:01:36]} e6 {[%emt 0:00:21]} 16. Ngf3 {[%emt 0:00:35]} exd5 {[%emt 0:01:17]} 17. exd5 {[%emt 0:01:05]} O-O {[%emt 0:02:29]} 18. Rc1 {[%emt 0:04:11]} f5 {[%emt 0:01:15]} 19. Nxh4 {[%emt 0:05:48]} Ne4 {[%emt 0:01:08]} 20. Bxe4 {[%emt 0:05:49]} fxe4 {[%emt 0:00:20]} 21. Rf1 {[%emt 0:00:59]} Bh6 {[%emt 0:01:25]} 22. g3 {[%emt 0:04:44]} Bxh3 {[%emt 0:00:50]} 23. Rh1 {[%emt 0:00:25]} Bg4 {[%emt 0:01:16]} 24. Ng2 {[%emt 0:01:49]} Bg7 {[%emt 0:01:14]} 25. Ne3 {[%emt 0:01:31]} Bd7 {[%emt 0:02:48]} 26. Ke2 {[%emt 0:01:00]} Re8 {[%emt 0:02:07]} 27. Rh4 {[%emt 0:04:03]} Bd4 {[%emt 0:03:47]} 28. Rch1 {[%emt 0:02:37]} Bxe3 {[%emt 0:05:08]} 29. Kxe3 {[%emt 0:00:09]} Re7 {[%emt 0:00:24]} 30. Rh6 {[%emt 0:01:22]} a5 {[%emt 0:01:00]} 31. Ra1 {[%emt 0:01:29]} Ra6 {[%emt 0:01:41]} 32. Rh5 {[%emt 0:03:08]} a4 {[%emt 0:02:33]} 33. Ra2 {[%emt 0:03:33]} axb3 {[%emt 0:01:05]} 34. Rxa6 {[%emt 0:01:23]} Nxa6 {[%emt 0:00:15]} 35. Nxb3 {[%emt 0:00:22]} Ba4 {[%emt 0:01:04]} 36. Nd2 {[%emt 0:01:15]} b3 {[%emt 0:01:22]} 37. Nb1 {[%emt 0:02:12]} Nb4 {[%emt 0:04:31]} 38. Rh1 {[%emt 0:02:48]} Nc2+ {[%emt 0:03:53]} 39. Kd2 {[%emt 0:01:23]} e3+ {[%emt 0:01:19]} 40. Ke2 {[%emt 0:00:00]} Nd4+ {[%emt 0:00:00]} 41. Ke1 {[%emt 0:00:24]} e2 {[%emt 0:01:57]} 42. Nc3 {[%emt 0:00:24]} Nf3+ {[%emt 0:00:26]} 0-1

[Event "Hungarian Youth-ch U10 2022"]
[Site "Eger"]
[Date "2022.07.31"]
[Round "9.1"]
[White "Brieber, Benedek"]
[Black "Morovan-Szabo, Lorinc"]
[Result "1-0"]
[ECO "D01"]
[WhiteElo "1369"]
[BlackElo "1232"]
[Annotator "NA"]
[PlyCount "69"]
[EventDate "2022.07.21"]
[EventType "tourn"]
[EventCountry "HUN"]
[SourceTitle "playchess.com"]
[Source "ChessBase"]
[SourceQuality "1"]
[TimeControl "40/5400+30:1800+30"]

1. d4 {[%emt 0:00:33]} d5 {[%emt 0:00:42]} 2. Nc3 {[%emt 0:00:19]} Nf6 {[%emt 0:00:18]} 3. Bg5 {[%emt 0:00:46]} Nbd7 {[%emt 0:01:10]} 4. Nf3 {[%emt 0:00:57]} e6 {[%emt 0:00:24]} 5. e3 {[%emt 0:01:28]} c6 {[%emt 0:00:42]} 6. a3 {[%emt 0:00:36]} Qa5 {[%emt 0:00:31]} 7. Be2 {[%emt 0:03:09]} Ne4 {[%emt 0:02:09]} 8. b4 {[%emt 0:05:01]} Bxb4 {[%emt 0:00:40]} 9. axb4 {[%emt 0:00:38]} Qxb4 {[%emt 0:00:17]} 10. O-O {[%emt 0:00:57]} Qxc3 {[%emt 0:00:47]} 11. Bd3 {[%emt 0:03:54]} f6 {[%emt 0:00:43]} 12. Bf4 {[%emt 0:00:55]} e5 {[%emt 0:01:36]} 13. dxe5 {[%emt 0:00:13]} fxe5 {[%emt 0:00:10]} 14. Bg3 {[%emt 0:02:27]} Nxg3 {[%emt 0:01:05]} 15. fxg3 {[%emt 0:01:40]} e4 {[%emt 0:00:51]} 16. Nh4 {[%emt 0:02:43]} Nf6 {[%emt 0:00:37]} 17. Be2 {[%emt 0:01:28]} Qxe3+ 18. Kh1 Qg5 {[%emt 0:03:10]} 19. Rf4 {[%emt 0:03:07]} O-O {[%emt 0:02:05]} 20. Qd2 {[%emt 0:05:12]} Be6 {[%emt 0:02:49]} 21. Raf1 {[%emt 0:02:35]} h6 {[%emt 0:01:03]} 22. Qb4 {[%emt 0:02:54]} Nd7 {[%emt 0:03:48]} 23. Qxb7 {[%emt 0:04:25]} Qe7 {[%emt 0:06:19]} 24. Ng6 {[%emt 0:00:38]} Qg5 {[%emt 0:01:36]} 25. Nxf8 {[%emt 0:00:11]} Rxf8 {[%emt 0:00:19]} 26. Rxf8+ {[%emt 0:00:08]} Nxf8 {[%emt 0:00:19]} 27. Qa8 {[%emt 0:02:34]} Qe7 {[%emt 0:01:09]} 28. Qxc6 {[%emt 0:02:05]} Qb4 {[%emt 0:03:07]} 29. Qe8 {[%emt 0:01:33]} Bd7 {[%emt 0:01:14]} 30. Qf7+ {[%emt 0:01:40]} Kh7 {[%emt 0:00:36]} 31. Qxf8 {[%emt 0:00:22]} Qd2 {[%emt 0:00:27]} 32. Bh5 {[%emt 0:01:53]} e3 {[%emt 0:02:48]} 33. Bf7 {[%emt 0:01:08]} h5 34. Qg8+ Kh6 {[%emt 0:02:56]} 35. Qh8+ {[%emt 0:01:06]} 1-0